bitfinex-derivatives/quotes_BTCF0:USTF0_20260131
["timestamp","ask_amount","ask_price","bid_price","bid_amount"]
[1769875269351,0.27456453,81406.0,81377.0,0.09964]
[1769875269761,0.27456453,81404.0,81377.0,0.09964]
[1769875270557,0.27456453,81402.0,81373.0,0.28526594]
[1769875270764,0.27456453,81402.0,81348.0,0.18270075]
[1769875270765,0.27456453,81397.0,81363.0,0.09964]
[1769875271061,0.27456453,81395.0,81361.0,0.39721394]
[1769875271255,0.27456453,81393.0,81361.0,0.39721394]
[1769875271458,0.27456453,81393.0,81361.0,0.38490594]
[1769875271654,0.32404,81394.0,81314.0,0.012315]
[1769875271655,0.27456453,81383.0,81348.0,0.28526594]
[1769875271965,0.27456453,81381.0,81349.0,0.01231]
[1769875272154,0.27456453,81379.0,81349.0,0.29757594]
[1769875272763,0.27456453,81379.0,81347.0,0.09964]
[1769875272764,0.27456453,81377.0,81353.0,0.29757494]
[1769875273064,0.27456453,81377.0,81353.0,0.012309]
[1769875273267,0.48032,81376.0,81353.0,0.012309]
[1769875273559,0.27456453,81375.0,81348.0,0.29757594]
[1769875274165,0.12290296,81374.0,81348.0,0.29757594]
[1769875274359,0.39746749,81374.0,81348.0,0.29757594]
[1769875274554,0.11310854,81373.0,81348.0,0.29757594]
[1769875274763,0.27456453,81371.0,81348.0,0.29757594]
[1769875274963,0.11310854,81370.0,81348.0,0.29757594]
[1769875275261,0.27456453,81371.0,81348.0,0.29757594]
[1769875275764,0.27456453,81371.0,81351.0,0.01231]
[1769875277262,0.27456453,81371.0,81351.0,0.29757594]
[1769875279560,0.27456453,81371.0,81351.0,0.01231]
[1769875280062,0.27456453,81369.0,81351.0,0.01231]
[1769875280765,0.27456453,81375.0,81351.0,0.29757594]
[1769875281061,0.27456453,81375.0,81347.0,0.09964]
[1769875281062,0.39075056,81374.0,81354.0,0.29757494]
[1769875281266,0.43152,81373.0,81354.0,0.29757494]
[1769875281462,0.09968,81372.0,81354.0,0.29757494]
[1769875282264,0.09968,81372.0,81354.0,0.28526594]
[1769875282457,0.09968,81372.0,81357.0,0.29757494]
[1769875282872,0.09968,81372.0,81360.0,0.012308]
[1769875284269,0.001,81375.0,81360.0,0.012308]
[1769875284468,0.27456453,81375.0,81360.0,0.012308]
[1769875284659,0.27456453,81375.0,81356.0,0.012309]
[1769875285164,0.27456453,81371.0,81339.0,0.09968]
[1769875285369,0.27456453,81369.0,81339.0,0.09968]
[1769875285559,0.27456453,81367.0,81343.0,0.012311]
[1769875285764,0.27456453,81365.0,81343.0,0.012311]
[1769875286164,0.27456453,81363.0,81339.0,0.111992]
[1769875286366,0.27456453,81361.0,81339.0,0.111992]
[1769875286564,0.27456453,81359.0,81339.0,0.111992]
[1769875286972,0.06780226,81378.0,81362.0,0.012308]
[1769875287170,0.11613134,81377.0,81362.0,0.29757394]
[1769875287471,0.09968,81386.0,81372.0,0.28526594]
[1769875287773,0.09968,81394.0,81381.0,0.012305]
[1769875287974,0.16813194,81394.0,81381.0,0.012305]
[1769875288171,0.09968,81394.0,81377.0,0.012306]
[1769875288371,0.11612454,81393.0,81377.0,0.012306]
[1769875288573,0.09968,81394.0,81377.0,0.012306]
[1769875288869,0.27456453,81406.0,81380.0,0.28526594]
[1769875289175,1.6e-07,81405.0,81393.0,0.28526594]
[1769875289383,0.09968,81412.0,81395.0,0.28526594]
[1769875289573,0.09968,81412.0,81397.0,0.28526594]
[1769875289973,0.27456453,81421.0,81398.0,0.012303]
[1769875290169,0.34337239,81421.0,81398.0,0.012303]
[1769875290370,0.34337239,81421.0,81399.0,0.09968]
[1769875291071,0.27456453,81419.0,81399.0,0.09968]
[1769875292374,0.27556453,81419.0,81399.0,0.09968]
[1769875292576,0.00168019,81409.0,81399.0,0.09968]
[1769875292876,0.27624472,81409.0,81372.0,0.28526594]
[1769875293068,0.27624472,81409.0,81357.0,0.012309]
[1769875293069,0.27456453,81407.0,81375.0,0.28526594]
[1769875293269,0.27456453,81407.0,81376.0,0.09968]
[1769875293572,0.00168019,81392.0,81379.0,0.012305]
[1769875293777,0.00168019,81392.0,81377.0,0.28526594]
[1769875293974,0.00168019,81392.0,81376.0,0.111986]
[1769875294475,0.00168019,81384.0,81376.0,0.111986]
[1769875294675,0.09968,81401.0,81380.0,0.012305]
[1769875295583,0.27456453,81400.0,81377.0,0.28526594]
[1769875296073,0.27456453,81400.0,81376.0,0.111986]
[1769875296773,0.27456453,81400.0,81379.0,0.012305]
[1769875296975,0.09968,81401.0,81379.0,0.30997795]
[1769875298477,0.28205638,81400.0,81379.0,0.30997795]
[1769875299486,0.00168058,81390.0,81379.0,0.30997795]
[1769875300285,0.00168058,81385.0,81379.0,0.30997795]
[1769875300485,0.46093325,81400.0,81379.0,0.30997795]
[1769875300678,0.28205638,81399.0,81379.0,0.012305]
[1769875301183,0.28205638,81399.0,81379.0,0.30857719]
[1769875301385,0.39615994,81398.0,81379.0,0.30857719]
[1769875301581,0.11431438,81397.0,81379.0,0.29627219]
[1769875301783,0.11431438,81396.0,81379.0,0.29627219]
[1769875301979,0.11431438,81395.0,81379.0,0.29627219]
[1769875302181,0.11431438,81394.0,81379.0,0.29627219]
[1769875302383,0.11431438,81393.0,81379.0,0.29627219]
[1769875302581,0.11431438,81392.0,81379.0,0.29627219]
[1769875302781,0.11431438,81391.0,81379.0,0.29627219]
[1769875302981,0.17887687,81400.0,81379.0,0.29627219]
[1769875303282,0.1143159,81399.0,81379.0,0.29627219]
[1769875303483,0.28184556,81397.0,81378.0,0.012306]
[1769875303784,0.28184556,81397.0,81361.0,0.012308]
[1769875303785,0.28184556,81395.0,81369.0,0.29627219]
[1769875304092,0.17887687,81390.0,81372.0,0.012307]
[1769875304284,0.17887687,81390.0,81350.0,0.39876]
[1769875304285,0.28184556,81388.0,81368.0,0.012307]
[1769875304481,0.17887687,81378.0,81363.0,0.012308]
[1769875304786,0.46072243,81378.0,81363.0,0.012308]
[1769875304991,0.17887687,81378.0,81363.0,0.012308]
[1769875305285,0.09968,81389.0,81366.0,0.012307]
[1769875305474,0.28184556,81387.0,81366.0,0.012307]
[1769875305679,0.3943587,81386.0,81366.0,0.012307]
[1769875305884,0.11251314,81385.0,81366.0,0.012307]
[1769875306085,0.11251314,81384.0,81366.0,0.012307]
[1769875306284,0.11251314,81383.0,81366.0,0.012307]
[1769875306474,0.11251314,81382.0,81366.0,0.012307]
[1769875306680,0.11251314,81381.0,81366.0,0.012307]
[1769875306984,0.00168092,81374.0,81366.0,0.012307]
[1769875307474,0.28184556,81373.0,81356.0,0.012309]
[1769875307682,0.00168092,81374.0,81358.0,0.012309]
[1769875307981,0.28184556,81379.0,81360.0,0.012308]
[1769875308184,0.11254387,81378.0,81360.0,0.012308]
[1769875308486,0.11254387,81377.0,81360.0,0.012308]
[1769875308687,0.11254387,81376.0,81360.0,0.012308]
[1769875308985,0.11254387,81375.0,81360.0,0.012308]
[1769875309182,0.28184556,81379.0,81360.0,0.012308]
[1769875309386,0.23546149,81378.0,81360.0,0.012308]
[1769875309585,0.39441088,81377.0,81360.0,0.012308]
[1769875309882,0.11256532,81376.0,81360.0,0.012308]
[1769875310289,0.11256532,81376.0,81363.0,0.012308]
[1769875310490,0.11256532,81375.0,81363.0,0.012308]
[1769875310691,0.09968,81379.0,81363.0,0.012308]
[1769875310883,0.28184556,81377.0,81360.0,0.012308]
[1769875311187,0.28184556,81375.0,81353.0,0.012309]
[1769875311384,0.28184556,81369.0,81353.0,0.111989]
[1769875313586,0.21227892,81368.0,81345.0,0.012311]
[1769875313788,0.28184556,81366.0,81345.0,0.012311]
[1769875313991,0.28184556,81364.0,81341.0,0.012311]
[1769875314194,0.28184556,81362.0,81341.0,0.012311]
[1769875314493,0.28184556,81360.0,81339.0,0.09968]
[1769875314680,0.28184556,81358.0,81339.0,0.09968]
[1769875315682,0.17887687,81350.0,81332.0,0.012313]
[1769875315889,0.17887687,81350.0,81333.0,0.09968]
[1769875316184,0.28184556,81356.0,81333.0,0.09968]
[1769875316393,0.28184556,81354.0,81333.0,0.09968]
[1769875316794,0.11261129,81353.0,81333.0,0.09968]
[1769875317096,0.28184556,81351.0,81333.0,0.09968]
[1769875317593,0.28184556,81356.0,81333.0,0.39595219]
[1769875317793,0.28184556,81354.0,81333.0,0.09968]
[1769875317992,0.11256861,81353.0,81333.0,0.09968]
[1769875318188,0.11256861,81352.0,81333.0,0.09968]
[1769875318492,0.28184556,81354.0,81333.0,0.09968]
[1769875318694,0.39436373,81353.0,81334.0,0.012312]
[1769875318883,0.28184556,81353.0,81334.0,0.012312]
[1769875319488,0.28184556,81353.0,81333.0,0.09968]
[1769875320087,0.28184556,81353.0,81333.0,0.39595219]
[1769875320299,0.11250547,81352.0,81340.0,0.29627219]
[1769875320591,0.09968,81357.0,81340.0,0.29627219]
[1769875320792,0.11249889,81356.0,81340.0,0.29627219]
[1769875320990,0.11249889,81355.0,81340.0,0.29627219]
[1769875321191,0.11249889,81354.0,81340.0,0.29627219]
[1769875321390,0.09968,81357.0,81340.0,0.29627219]
[1769875321584,0.11250385,81356.0,81340.0,0.29627219]
[1769875321782,0.11250385,81355.0,81340.0,0.29627219]
[1769875321985,0.11250385,81354.0,81340.0,0.29627219]
[1769875322185,0.09968,81357.0,81340.0,0.29627219]
[1769875322391,0.11064707,81356.0,81340.0,0.29627219]
[1769875322583,0.09968,81357.0,81340.0,0.29627219]
[1769875322787,0.11064476,81356.0,81340.0,0.29627219]
[1769875322990,0.09972,81369.0,81356.0,0.30858119]
[1769875323189,0.28184556,81380.0,81356.0,0.30858119]
[1769875323190,0.09972,81379.0,81356.0,0.30858119]
[1769875323501,0.28184556,81378.0,81356.0,0.012309]
[1769875324889,0.09972,81377.0,81356.0,0.012309]
[1769875325100,0.28184556,81376.0,81356.0,0.012309]
[1769875326093,0.28184556,81376.0,81356.0,0.30858119]
[1769875326493,0.28184556,81376.0,81356.0,0.012309]
[1769875329696,0.27214161,81376.0,81356.0,0.012309]
[1769875331104,0.0016813,81366.0,81356.0,0.012309]
[1769875332106,0.27214161,81376.0,81356.0,0.012309]
[1769875333304,0.27214161,81376.0,81356.0,0.29869314]
[1769875333505,0.012305,81385.0,81355.0,0.09972]
[1769875333506,0.24546212,81389.0,81372.0,0.012306]
[1769875333711,0.17887687,81410.0,81355.0,0.112029]
[1769875333712,0.09972,81387.0,81367.0,0.28638414]
[1769875334009,0.09972,81387.0,81369.0,0.28638414]
[1769875334203,0.09972,81387.0,81377.0,0.012306]
[1769875334404,0.09972,81387.0,81373.0,0.012306]
[1769875334801,0.37186161,81387.0,81373.0,0.012306]
[1769875335000,0.11076564,81386.0,81373.0,0.012306]
[1769875335201,0.11076564,81385.0,81373.0,0.012306]
[1769875335402,0.11076564,81384.0,81373.0,0.012306]
[1769875335604,0.11076564,81383.0,81373.0,0.012306]
[1769875335813,0.37186161,81387.0,81373.0,0.012306]
[1769875336108,0.11075378,81386.0,81373.0,0.012306]
[1769875336308,0.37186161,81387.0,81373.0,0.012306]
[1769875336309,0.11075378,81385.0,81373.0,0.012306]
[1769875336612,0.11075378,81384.0,81373.0,0.012306]
[1769875336910,0.11074548,81383.0,81373.0,0.012306]
[1769875337104,0.27214161,81386.0,81373.0,0.012306]
[1769875337300,0.11074548,81385.0,81373.0,0.012306]
[1769875337504,0.11074548,81384.0,81373.0,0.012306]
[1769875337805,0.27214161,81386.0,81373.0,0.012306]
[1769875338105,0.11073618,81385.0,81373.0,0.012306]
[1769875338403,0.11073618,81384.0,81373.0,0.012306]
[1769875338701,0.27214161,81386.0,81373.0,0.012306]
[1769875338903,0.11072221,81385.0,81373.0,0.012306]
[1769875339111,0.11072221,81384.0,81373.0,0.012306]
[1769875339411,0.09972,81387.0,81373.0,0.012306]
[1769875339711,0.11070804,81386.0,81373.0,0.012306]
[1769875339911,0.11070804,81385.0,81373.0,0.012306]
[1769875340111,0.37186161,81387.0,81373.0,0.012306]
[1769875340312,0.11070806,81386.0,81373.0,0.012306]
[1769875340512,0.11070806,81385.0,81373.0,0.012306]
[1769875340712,0.37186161,81387.0,81373.0,0.012306]
[1769875340912,0.11069435,81386.0,81373.0,0.012306]
[1769875341113,0.11069435,81385.0,81373.0,0.012306]
[1769875341308,0.37186161,81387.0,81373.0,0.012306]
[1769875341509,0.11067767,81386.0,81373.0,0.012306]
[1769875341714,0.11067767,81385.0,81373.0,0.012306]
[1769875341911,0.27214161,81386.0,81373.0,0.012306]
[1769875342217,0.11067767,81385.0,81373.0,0.012306]
[1769875342409,0.27214161,81386.0,81373.0,0.012306]
[1769875343115,0.11229452,81385.0,81373.0,0.012306]
[1769875343414,0.27214161,81386.0,81373.0,0.012306]
[1769875343603,0.11228055,81385.0,81373.0,0.012306]
[1769875343915,0.27214161,81386.0,81373.0,0.012306]
[1769875344213,0.11228055,81385.0,81373.0,0.012306]
[1769875344407,0.27214161,81386.0,81373.0,0.012306]
[1769875344607,0.11227363,81385.0,81373.0,0.012306]
[1769875344807,0.27214161,81386.0,81373.0,0.012306]
[1769875345010,0.11227363,81385.0,81375.0,0.012306]
[1769875345320,0.27214161,81402.0,81385.0,0.012305]
[1769875345517,0.11224704,81401.0,81385.0,0.012305]
[1769875345715,0.27214161,81399.0,81385.0,0.012305]
[1769875346014,0.38438865,81398.0,81385.0,0.012305]
[1769875346315,0.11224704,81397.0,81385.0,0.012305]
[1769875346511,0.11224704,81396.0,81385.0,0.012305]
[1769875346710,0.27214161,81398.0,81385.0,0.012305]
[1769875347015,0.11223449,81397.0,81385.0,0.012305]
[1769875347214,0.11223449,81396.0,81385.0,0.012305]
[1769875347516,0.11223449,81395.0,81385.0,0.012305]
[1769875347814,0.09968,81401.0,81385.0,0.28638414]
[1769875348015,4e-07,81400.0,81396.0,0.012303]
[1769875348211,0.30666396,81427.0,81396.0,0.012303]
[1769875348212,0.37182161,81412.0,81396.0,0.012303]
[1769875348414,0.27214161,81411.0,81396.0,0.012303]
[1769875352218,0.27214161,81411.0,81392.0,0.012303]
[1769875352917,0.27214161,81411.0,81395.0,0.012303]
[1769875354011,0.27214161,81411.0,81391.0,0.012304]
[1769875357318,0.29441016,81409.0,81383.0,0.111985]
[1769875357716,0.09968,81412.0,81383.0,0.09968]
[1769875357717,0.29441016,81405.0,81383.0,0.09968]
[1769875357917,0.29441016,81403.0,81383.0,0.09968]
[1769875358116,0.29441016,81393.0,81383.0,0.09968]
[1769875359118,0.00168044,81388.0,81383.0,0.09968]
[1769875360018,0.29441016,81393.0,81383.0,0.09968]
[1769875361125,0.29441016,81393.0,81379.0,0.47504]
[1769875361126,0.29441016,81393.0,81367.0,0.09968]
[1769875361319,0.09968,81392.0,81372.0,0.012306]
[1769875361621,0.27938391,81391.0,81368.0,0.012307]
[1769875362419,0.27938391,81391.0,81371.0,0.30847866]
[1769875362818,0.27938391,81391.0,81371.0,0.012307]
[1769875364124,0.27938391,81391.0,81367.0,0.012307]
[1769875364319,0.27938391,81391.0,81356.0,0.24592994]
[1769875364623,0.27938391,81382.0,81356.0,0.1212]
[1769875364821,0.27938391,81380.0,81356.0,0.1212]
[1769875365420,0.27938391,81378.0,81356.0,0.1212]
[1769875366326,0.27938391,81378.0,81356.0,0.1222]
[1769875367022,0.27938391,81378.0,81356.0,0.1212]
[1769875367728,0.27662373,81378.0,81356.0,0.1212]
[1769875367923,0.27762373,81378.0,81356.0,0.1212]
[1769875368422,0.001,81378.0,81357.0,0.30848066]
[1769875368630,0.001,81378.0,81364.0,0.29617166]
[1769875368823,0.09968,81391.0,81369.0,0.012307]
[1769875369218,0.09968,81391.0,81369.0,0.30847866]
[1769875370021,0.37906391,81391.0,81369.0,0.30847866]
[1769875370425,0.27938391,81390.0,81369.0,0.30847866]
[1769875371330,0.09968,81391.0,81372.0,0.30847766]
[1769875372524,0.09968,81401.0,81389.0,0.012304]
[1769875372724,0.5942,81405.0,81389.0,0.012304]
[1769875373630,0.09968,81405.0,81392.0,0.012303]
[1769875374830,0.49476,81412.0,81400.0,0.012302]
[1769875375625,0.34764491,81420.0,81403.0,0.012302]
[1769875379935,0.34764491,81420.0,81400.0,0.012302]
[1769875379936,0.27938391,81411.0,81400.0,0.012302]
[1769875380323,0.00168066,81412.0,81403.0,0.012302]
[1769875380733,0.27938391,81414.0,81403.0,0.012302]
[1769875382430,0.27938391,81412.0,81382.0,0.09968]
[1769875382632,0.27938391,81410.0,81388.0,0.012304]
[1769875382830,0.27938391,81408.0,81382.0,0.09968]
[1769875383029,0.27938391,81406.0,81382.0,0.09968]
[1769875383231,0.27938391,81404.0,81382.0,0.09968]
[1769875383434,0.27938391,81402.0,81382.0,0.09968]
[1769875383630,0.27938391,81402.0,81379.0,0.012305]
[1769875384530,0.27938391,81402.0,81378.0,0.012306]
[1769875386240,0.27938391,81402.0,81374.0,0.012306]
[1769875389136,0.28406074,81400.0,81374.0,0.307353]
[1769875390045,0.28406074,81400.0,81374.0,0.012306]
[1769875390238,0.28406074,81396.0,81372.0,0.012307]
[1769875390441,0.00116023,81384.0,81371.0,0.012307]
[1769875391547,0.28406074,81387.0,81371.0,0.012307]
[1769875392549,0.28406074,81400.0,81371.0,0.307354]
[1769875392845,0.28406074,81400.0,81371.0,0.407034]
[1769875393050,0.28406074,81400.0,81372.0,0.295047]
[1769875394747,0.28406074,81400.0,81374.0,0.295047]
[1769875394949,0.523,81403.0,81386.0,0.295047]
[1769875395747,0.28406074,81402.0,81384.0,0.012305]
[1769875397449,0.28406074,81402.0,81380.0,0.295047]
[1769875397752,0.28406074,81402.0,81374.0,0.51328]
[1769875397954,0.28406074,81402.0,81374.0,0.119]
[1769875399055,0.28406074,81402.0,81375.0,0.012306]
[1769875399254,0.28406074,81400.0,81378.0,0.012306]
[1769875402257,0.28406074,81400.0,81381.0,0.012305]
[1769875402651,0.09968,81403.0,81391.0,0.307351]
[1769875403151,0.09968,81403.0,81387.0,0.09968]
[1769875403152,0.09968,81403.0,81388.0,0.012304]
[1769875404159,0.09968,81403.0,81388.0,0.307351]
[1769875405355,0.28406074,81420.0,81391.0,0.295047]
[1769875405563,0.09968,81421.0,81404.0,0.307349]
[1769875405860,0.28406074,81426.0,81404.0,0.307349]
[1769875405861,0.09968,81423.0,81404.0,0.307349]
[1769875406063,0.09968,81423.0,81407.0,0.307348]
[1769875406365,0.28406074,81433.0,81417.0,0.0123]
[1769875406659,0.09968,81434.0,81421.0,0.012299]
[1769875406855,0.09968,81434.0,81421.0,0.407026]
[1769875407060,0.28406074,81443.0,81421.0,0.407026]
[1769875407560,0.28406074,81466.0,81442.0,0.307343]
[1769875407859,0.28406074,81466.0,81443.0,0.394727]
[1769875408056,0.28406074,81466.0,81444.0,0.012296]
[1769875408558,0.28406074,81466.0,81443.0,0.394727]
[1769875408758,0.28406074,81466.0,81443.0,0.09968]
[1769875411861,0.28406074,81466.0,81449.0,0.012295]
[1769875412069,0.28406074,81466.0,81444.0,0.012296]
[1769875413665,0.28406074,81466.0,81450.0,0.012295]
[1769875414259,0.16849644,81475.0,81450.0,0.295047]
[1769875414260,0.28406074,81472.0,81450.0,0.295047]
[1769875414466,0.09968,81475.0,81457.0,0.012294]
[1769875414766,0.09968,81475.0,81458.0,0.09964]
[1769875414969,0.09968,81475.0,81459.0,0.012293]
[1769875415568,0.28406074,81502.0,81469.0,0.012292]
[1769875415768,0.28406074,81500.0,81471.0,0.012292]
[1769875416366,0.12274908,81499.0,81471.0,0.012292]
[1769875416670,0.28406074,81498.0,81470.0,0.09964]
[1769875416871,0.29645211,81498.0,81470.0,0.09964]
[1769875417367,0.28406074,81498.0,81471.0,0.29347041]
[1769875418777,0.28406074,81498.0,81472.0,0.40536141]
[1769875419075,0.28406074,81498.0,81474.0,0.29347041]
[1769875419683,0.13501072,81497.0,81475.0,0.0996]
[1769875419878,0.12272272,81497.0,81457.0,0.012294]
[1769875420070,0.09964,81501.0,81458.0,0.0996]
[1769875420270,0.012288,81494.0,81460.0,0.012293]
[1769875420775,0.12272046,81493.0,81460.0,0.012293]
[1769875420974,0.32388,81492.0,81460.0,0.012293]
[1769875421170,0.0996,81491.0,81460.0,0.012293]
[1769875421575,0.40287743,81490.0,81460.0,0.012293]
[1769875421872,0.28014341,81489.0,81460.0,0.012293]
[1769875422274,0.28014341,81489.0,81463.0,0.012293]
[1769875422477,0.28014341,81489.0,81469.0,0.012292]
[1769875422679,0.28009341,81489.0,81471.0,0.012292]
[1769875422873,0.0996,81491.0,81475.0,0.012291]
[1769875423476,0.0996,81491.0,81475.0,0.28350745]
[1769875425375,0.28014341,81499.0,81475.0,0.28350745]
[1769875426680,0.28014341,81499.0,81480.0,0.1788091]
[1769875426881,0.28014341,81499.0,81480.0,0.2783691]
[1769875427483,0.28014341,81499.0,81481.0,0.01229]
[1769875427782,0.0996,81501.0,81481.0,0.27121645]
[1769875428178,0.0996,81501.0,81488.0,0.012289]
[1769875428384,0.0996,81501.0,81487.0,0.27121645]
[1769875428385,0.0996,81501.0,81487.0,0.012289]
[1769875428683,0.0996,81501.0,81490.0,0.012289]
[1769875428883,0.28014341,81514.0,81493.0,0.28350445]
[1769875429086,0.28014341,81514.0,81485.0,0.012289]
[1769875429286,0.28014341,81514.0,81488.0,0.012289]
[1769875429581,0.28114341,81501.0,81488.0,0.012289]
[1769875429780,0.28114341,81501.0,81480.0,0.2783691]
[1769875430183,0.28014341,81501.0,81480.0,0.2783691]
[1769875430383,0.28014341,81501.0,81480.0,0.2906591]
[1769875431689,0.28014341,81501.0,81480.0,0.1910991]
[1769875431882,0.28114341,81501.0,81480.0,0.1910991]
[1769875433288,0.28114341,81501.0,81480.0,0.1788091]
[1769875436086,0.28014341,81492.0,81466.0,0.012292]
[1769875436285,0.28014341,81489.0,81462.0,0.012293]
[1769875436484,0.28014341,81489.0,81460.0,0.1788091]
[1769875436693,0.28014341,81475.0,81444.0,0.012296]
[1769875436991,0.2045,81491.0,81450.0,0.2783691]
[1769875436992,0.28014341,81473.0,81450.0,0.2783691]
[1769875437188,0.28014341,81472.0,81450.0,0.2783691]
[1769875437781,0.28014341,81466.0,81437.0,0.012297]
[1769875437987,0.28014341,81466.0,81440.0,0.012296]
[1769875438187,0.28014341,81466.0,81448.0,0.012295]
[1769875438489,0.28014341,81466.0,81450.0,0.1788091]
[1769875438693,0.06778986,81472.0,81425.0,0.012299]
[1769875438694,0.28014341,81458.0,81425.0,0.012299]
[1769875438894,0.28014341,81456.0,81429.0,0.012298]
[1769875439096,0.28014341,81454.0,81428.0,0.09956]
[1769875439398,0.28014341,81454.0,81428.0,0.37077645]
[1769875441396,0.28014341,81454.0,81430.0,0.28351445]
[1769875441795,0.28014341,81454.0,81430.0,0.012298]
[1769875443201,0.28014341,81454.0,81428.0,0.09956]
[1769875443697,0.28014341,81452.0,81428.0,0.09956]
[1769875444295,0.28014341,81450.0,81428.0,0.09956]
[1769875444899,0.28014341,81448.0,81428.0,0.09956]
[1769875445092,0.12278827,81449.0,81428.0,0.09956]
[1769875445093,0.28014341,81446.0,81428.0,0.09956]
[1769875445287,0.28014341,81444.0,81428.0,0.09956]
[1769875445493,0.28014341,81444.0,81422.0,0.0996]
[1769875445898,0.28014341,81444.0,81423.0,0.012299]
[1769875446501,0.28014341,81444.0,81422.0,0.0996]
[1769875447801,0.28014341,81444.0,81422.0,0.111899]
[1769875448196,0.29808027,81442.0,81422.0,0.0996]
[1769875449202,0.29808027,81440.0,81422.0,0.0996]
[1769875449398,0.29808027,81440.0,81423.0,0.012299]
[1769875451398,0.29808027,81440.0,81426.0,0.012298]
[1769875451796,0.29808027,81440.0,81422.0,0.0996]
[1769875451797,0.29808027,81440.0,81422.0,0.111899]
[1769875452205,0.29808027,81440.0,81425.0,0.012299]
[1769875452597,0.29808027,81440.0,81422.0,0.0996]
[1769875454204,0.29808027,81440.0,81416.0,0.0123]
[1769875456296,0.29808027,81440.0,81415.0,0.0996]
[1769875457614,0.29808027,81429.0,81408.0,0.1194]
[1769875457910,0.29808027,81429.0,81398.0,8.664e-05]
[1769875457911,0.29808027,81424.0,81398.0,8.664e-05]
[1769875458108,0.29808027,81420.0,81398.0,8.664e-05]
[1769875458413,0.0123,81414.0,81398.0,8.664e-05]
[1769875458610,0.0001222,81419.0,81390.0,0.1788091]
[1769875458611,0.29808027,81409.0,81390.0,0.1788091]
[1769875459115,0.012301,81406.0,81372.0,0.012306]
[1769875459412,0.29808027,81405.0,81373.0,0.0996]
[1769875459712,0.29808027,81391.0,81359.0,0.012309]
[1769875459918,0.29808027,81389.0,81359.0,0.2865956]
[1769875460217,0.29808027,81389.0,81362.0,0.012308]
[1769875460714,0.29808027,81389.0,81368.0,0.012307]
[1769875461916,0.00011496,81390.0,81368.0,0.2865936]
[1769875462218,0.29808027,81404.0,81380.0,0.2865916]
[1769875462415,0.29808027,81404.0,81380.0,0.09964]
[1769875463015,0.29808027,81402.0,81380.0,0.09964]
[1769875463212,0.29808027,81400.0,81380.0,0.09964]
[1769875463617,0.29808027,81400.0,81380.0,0.10064]
[1769875465216,0.29808027,81400.0,81380.0,0.09964]
[1769875467318,0.09964,81402.0,81381.0,0.2865916]
[1769875467718,0.00010313,81403.0,81385.0,0.2742866]
[1769875467923,0.16644507,81414.0,81393.0,0.2865896]
[1769875468223,0.16644507,81414.0,81396.0,0.012303]
[1769875469024,0.29808027,81413.0,81392.0,0.111943]
[1769875469323,0.29808027,81413.0,81392.0,0.09964]
[1769875470319,0.09964,81412.0,81392.0,0.09964]
[1769875470520,0.29808027,81411.0,81392.0,0.09964]
[1769875472027,0.29808027,81411.0,81393.0,0.012303]
[1769875472529,0.09964,81410.0,81393.0,0.012303]
[1769875472727,0.39772027,81410.0,81393.0,0.012303]
[1769875473230,0.39772027,81410.0,81367.0,0.09964]
[1769875473231,0.29808027,81395.0,81367.0,0.09964]
[1769875473425,0.12284785,81409.0,81367.0,0.09964]
[1769875473426,0.29808027,81393.0,81367.0,0.09964]
[1769875473921,0.29808027,81391.0,81367.0,0.09964]
[1769875474126,0.5962,81410.0,81373.0,0.012306]
[1769875474127,0.06659905,81395.0,81373.0,0.012306]
[1769875474326,0.29808027,81397.0,81374.0,0.2742866]
[1769875474632,0.5962,81410.0,81367.0,0.09964]
[1769875474633,0.12288031,81409.0,81380.0,0.2742866]
[1769875474823,0.06735624,81410.0,81390.0,0.2742866]
[1769875475024,0.29808027,81415.0,81391.0,0.09964]
[1769875475228,0.29808027,81415.0,81391.0,0.111944]
[1769875475426,0.12285842,81414.0,81391.0,0.111944]
[1769875476227,0.42093869,81414.0,81391.0,0.111944]
[1769875478829,0.27451626,81413.0,81391.0,0.111944]
[1769875481925,0.28544955,81411.0,81392.0,0.09964]
[1769875482526,0.28544955,81409.0,81392.0,0.09964]
[1769875483321,0.06664869,81415.0,81392.0,0.09964]
[1769875483527,0.28544955,81416.0,81403.0,0.012302]
[1769875483727,0.64058855,81436.0,81404.0,0.09964]
[1769875483728,0.28544955,81429.0,81404.0,0.09964]
[1769875483934,0.28544955,81435.0,81416.0,0.0123]
[1769875484126,0.40828533,81435.0,81417.0,0.09964]
[1769875484332,0.3541916,81435.0,81417.0,0.09964]
[1769875484529,0.40828533,81434.0,81417.0,0.09964]
[1769875484730,0.12283578,81434.0,81421.0,0.012299]
[1769875484931,0.28544955,81442.0,81421.0,0.012299]
[1769875485329,0.28544955,81440.0,81421.0,0.012299]
[1769875486237,0.1351001,81439.0,81410.0,0.012301]
[1769875486433,0.1351001,81439.0,81402.0,0.28399899]
[1769875486434,0.28544955,81438.0,81412.0,0.012301]
[1769875487136,0.1228124,81437.0,81412.0,0.012301]
[1769875487338,0.28544955,81436.0,81412.0,0.012301]
[1769875487937,0.1228124,81435.0,81412.0,0.012301]
[1769875488236,0.28544955,81434.0,81412.0,0.012301]
[1769875488831,0.12281391,81433.0,81412.0,0.012301]
[1769875489036,0.28544955,81432.0,81412.0,0.012301]
[1769875490428,0.06847413,81442.0,81422.0,0.012299]
[1769875490429,0.28544955,81439.0,81422.0,0.012299]
[1769875490634,0.28544955,81439.0,81423.0,0.09964]
[1769875490833,0.28544955,81439.0,81424.0,0.012299]
[1769875491230,0.28544955,81439.0,81423.0,0.09964]
[1769875492042,0.28544955,81439.0,81424.0,0.012299]
[1769875492349,0.06847413,81442.0,81424.0,0.012299]
[1769875492637,0.12280335,81441.0,81424.0,0.012299]
[1769875492838,0.12280335,81441.0,81425.0,0.012298]
[1769875493042,0.35161042,81447.0,81428.0,0.012298]
[1769875493343,0.35161042,81447.0,81423.0,0.09964]
[1769875493344,0.28544955,81456.0,81424.0,0.28399899]
[1769875493538,0.28544955,81456.0,81426.0,0.28399899]
[1769875493735,0.06874208,81459.0,81443.0,0.012296]
[1769875493932,0.28544955,81463.0,81448.0,0.012295]
[1769875494144,0.35426261,81463.0,81449.0,0.09964]
[1769875494334,0.06881306,81463.0,81449.0,0.09964]
[1769875494534,0.28544955,81470.0,81449.0,0.09964]
[1769875494933,0.40823782,81469.0,81450.0,0.012295]